[Event "12ème open de Salon"]
[Site "Salon de Provence, France"]
[Date "2022.07.10"]
[Round "3.6"]
[White "Chabaud, Philippe"]
[Black "Jullien, Patrick"]
[Result "0-1"]
[TimeControl "1 h 30 min + 30 s"]
[WhiteElo "1481"]
[BlackElo "1548"]

1. d4 {[%clk 01:30:56]} {[%emt 00:00:03]} d5 {[%clk 01:30:48]} {[%emt
00:00:12]} 2. Bf4 {[%clk 01:31:12]} {[%emt 00:00:14]} c5 {[%clk 01:30:59]}
{[%emt 00:00:18]} 3. e3 {[%clk 01:29:51]} {[%emt 00:01:51]} cxd4 {[%clk
01:27:26]} {[%emt 00:04:04]} 4. exd4 {[%clk 01:30:00]} {[%emt 00:00:20]} e6
{[%clk 01:27:20]} {[%emt 00:00:37]} 5. Nf3 {[%clk 01:29:41]} {[%emt 00:00:49]}
Bd6 {[%clk 01:27:19]} {[%emt 00:00:31]} 6. Bxd6 {[%clk 01:25:36]} {[%emt
00:04:35]} Qxd6 {[%clk 01:27:38]} {[%emt 00:00:12]} 7. Nc3 {[%clk 01:25:05]}
{[%emt 00:01:00]} a6 {[%clk 01:27:17]} {[%emt 00:00:51]} 8. Bd3 {[%clk
01:24:16]} {[%emt 00:01:18]} Nf6 {[%clk 01:27:27]} {[%emt 00:00:21]} 9. O-O
{[%clk 01:23:27]} {[%emt 00:01:19]} Nc6 {[%clk 01:27:27]} {[%emt 00:00:29]} 10.
a3 {[%clk 01:23:35]} {[%emt 00:00:22]} O-O {[%emt 00:03:02]} 11. Re1 {[%emt
00:01:04]} b5 {[%clk 01:22:57]} {[%emt 00:00:55]} 12. b4 {[%clk 01:23:01]}
{[%emt 00:01:03]} Bb7 {[%clk 01:22:45]} {[%emt 00:00:43]} 13. Bf1 {[%clk
01:18:47]} {[%emt 00:04:44]} Ne7 {[%clk 01:19:13]} {[%emt 00:04:02]} 14. Ne5
{[%clk 01:18:44]} {[%emt 00:00:32]} Ng6 {[%clk 01:16:08]} {[%emt 00:03:37]} 15.
h3 {[%clk 01:13:22]} {[%emt 00:05:52]} Rac8 {[%clk 01:16:04]} {[%emt 00:00:34]}
16. Na2 {[%clk 01:07:26]} {[%emt 00:06:25]} Ne4 {[%clk 01:13:03]} {[%emt
00:03:31]} 17. Nd3 {[%clk 01:03:53]} {[%emt 00:04:03]} Qc7 {[%clk 00:52:51]}
{[%emt 00:20:42]} 18. Nc5 {[%clk 01:04:01]} {[%emt 00:00:22]} Nxc5 {[%clk
00:52:58]} {[%emt 00:00:23]} 19. bxc5 {[%clk 01:02:15]} {[%emt 00:02:15]} Ne7
{[%clk 00:51:58]} {[%emt 00:01:31]} 20. Nb4 {[%clk 00:58:34]} {[%emt 00:04:11]}
Nc6 {[%clk 00:51:20]} {[%emt 00:01:07]} 21. Nxc6 {[%clk 00:56:30]} {[%emt
00:02:35]} Bxc6 {[%clk 00:50:50]} {[%emt 00:00:59]} 22. Bd3 {[%clk 00:54:06]}
{[%emt 00:02:54]} Rfe8 {[%clk 00:48:02]} {[%emt 00:03:19]} 23. Qh5 {[%clk
00:53:43]} {[%emt 00:00:53]} g6 {[%clk 00:47:21]} {[%emt 00:01:11]} 24. Qg5
{[%clk 00:50:50]} {[%emt 00:03:22]} Qe7 {[%clk 00:46:59]} {[%emt 00:00:52]} 25.
Qg3 {[%clk 00:49:20]} {[%emt 00:02:01]} Qc7 {[%clk 00:46:45]} {[%emt 00:00:44]}
26. f4 {[%clk 00:49:04]} {[%emt 00:00:46]} Qa5 {[%clk 00:44:17]} {[%emt
00:02:58]} 27. Qe3 {[%clk 00:43:18]} {[%emt 00:06:15]} b4 {[%clk 00:42:33]}
{[%emt 00:02:14]} 28. axb4 {[%clk 00:43:14]} {[%emt 00:00:34]} Qxb4 {[%clk
00:42:39]} {[%emt 00:00:24]} 29. Rxa6 {[%clk 00:42:22]} {[%emt 00:01:22]} Bb5
{[%clk 00:43:00]} {[%emt 00:00:09]} 30. Bxb5 {[%clk 00:41:31]} {[%emt
00:01:21]} Qxb5 {[%clk 00:43:24]} {[%emt 00:00:06]} 31. Rb6 {[%clk 00:41:53]}
{[%emt 00:00:08]} Qc4 {[%clk 00:43:28]} {[%emt 00:00:23]} 32. Qb3 {[%clk
00:40:18]} {[%emt 00:02:08]} Qxd4+ {[%clk 00:43:27]} {[%emt 00:00:31]} 33. Qe3
{[%clk 00:36:57]} {[%emt 00:03:51]} Qxe3+ {[%clk 00:42:25]} {[%emt 00:01:32]}
34. Rxe3 {[%clk 00:37:19]} {[%emt 00:00:08]} Rxc5 {[%clk 00:42:44]} {[%emt
00:00:12]} 35. c3 {[%clk 00:37:22]} {[%emt 00:00:26]} Rec8 {[%clk 00:42:28]}
{[%emt 00:00:44]} 36. Rb3 {[%clk 00:37:19]} {[%emt 00:00:34]} Kg7 {[%clk
00:42:18]} {[%emt 00:00:41]} 37. Kf2 {[%clk 00:37:39]} {[%emt 00:00:09]} Kf6
{[%clk 00:41:22]} {[%emt 00:01:25]} 38. Kf3 {[%clk 00:37:59]} {[%emt 00:00:11]}
Rc4 {[%clk 00:40:47]} {[%emt 00:01:04]} 39. g4 {[%clk 00:37:30]} {[%emt
00:01:00]} g5 {[%clk 00:32:09]} {[%emt 00:09:10]} 40. fxg5+ {[%clk 00:35:04]}
{[%emt 00:02:56]} Kxg5 {[%clk 00:32:01]} {[%emt 00:00:37]} 41. Kg3 {[%clk
00:34:34]} {[%emt 00:01:00]} R8c7 {[%clk 00:29:20]} {[%emt 00:03:11]} 42. h4+
{[%clk 00:31:01]} {[%emt 00:04:04]} Kg6 {[%clk 00:29:26]} {[%emt 00:00:23]} 43.
Rf3 {[%clk 00:30:24]} {[%emt 00:01:08]} f6 {[%clk 00:27:42]} {[%emt 00:02:14]}
44. Rb6 {[%clk 00:26:44]} {[%emt 00:04:10]} R7c6 {[%clk 00:27:40]} {[%emt
00:00:33]} 45. Rxc6 {[%clk 00:25:19]} {[%emt 00:01:54]} Rxc6 {[%clk 00:28:00]}
{[%emt 00:00:09]} 46. Rd3 {[%clk 00:25:27]} {[%emt 00:00:23]} h6 {[%clk
00:27:45]} {[%emt 00:00:46]} 47. Rf3 {[%clk 00:19:25]} {[%emt 00:06:32]} e5
{[%clk 00:21:04]} {[%emt 00:07:10]} 48. Rd3 {[%clk 00:18:50]} {[%emt 00:01:05]}
Rc5 {[%clk 00:20:21]} {[%emt 00:01:14]} 49. Rf3 {[%clk 00:17:38]} {[%emt
00:01:42]} Kg7 {[%clk 00:18:58]} {[%emt 00:01:53]} 50. h5 {[%clk 00:17:29]}
{[%emt 00:00:40]} e4 {[%clk 00:17:14]} {[%emt 00:02:14]} 51. Re3 {[%clk
00:17:33]} {[%emt 00:00:25]} Kf7 {[%clk 00:17:19]} {[%emt 00:00:25]} 52. Kf4
{[%clk 00:17:46]} {[%emt 00:00:17]} Ke6 {[%clk 00:16:58]} {[%emt 00:00:51]} 53.
Rg3 {[%clk 00:17:15]} {[%emt 00:01:01]} Rc4 {[%clk 00:15:51]} {[%emt 00:01:36]}
54. Re3 {[%clk 00:17:29]} {[%emt 00:00:16]} Ra4 {[%clk 00:12:29]} {[%emt
00:03:52]} 55. Kg3 {[%clk 00:13:09]} {[%emt 00:04:50]} Ke5 {[%clk 00:12:19]}
{[%emt 00:00:39]} 56. Re1 {[%clk 00:12:32]} {[%emt 00:01:07]} Ra3 {[%clk
00:12:22]} {[%emt 00:00:27]} 57. Re3 {[%clk 00:12:17]} {[%emt 00:00:45]} Rb3
{[%clk 00:10:31]} {[%emt 00:02:22]} 58. Kh4 {[%clk 00:09:00]} {[%emt 00:03:47]}
Kf4 {[%clk 00:10:38]} {[%emt 00:00:22]} 59. Rg3 {[%clk 00:05:21]} {[%emt
00:04:10]} e3 {[%clk 00:10:32]} {[%emt 00:00:36]} 60. Rg1 {[%clk 00:04:19]}
{[%emt 00:01:33]} Rxc3 {[%clk 00:10:41]} {[%emt 00:00:20]} 61. Rf1+ {[%clk
00:04:22]} {[%emt 00:00:27]} Ke5 {[%clk 00:10:55]} {[%emt 00:00:15]} 62. Rf5+
{[%clk 00:04:24]} {[%emt 00:00:29]} Ke6 {[%clk 00:10:47]} {[%emt 00:00:37]} 63.
Rf1 {[%clk 00:03:34]} {[%emt 00:01:21]} d4 {[%clk 00:10:19]} {[%emt 00:00:58]}
64. Re1 {[%clk 00:02:18]} {[%emt 00:01:46]} Ke5 {[%clk 00:10:34]} {[%emt
00:00:15]} 65. g5 {[%clk 00:01:47]} {[%emt 00:01:01]} fxg5+ {[%clk 00:10:47]}
{[%emt 00:00:17]} 66. Kg4 {[%clk 00:01:33]} {[%emt 00:00:44]} Ke4 {[%clk
00:10:56]} {[%emt 00:00:20]} 67. Rxe3+ {[%clk 00:01:06]} {[%emt 00:00:58]} dxe3
{[%clk 00:10:22]} {[%emt 00:01:04]} 0-1

[Event "12ème open de Salon"]
[Site "Salon de Provence, France"]
[Date "2022.07.10"]
[Round "3.7"]
[White "Piquemal, Jean-Christophe"]
[Black "Schmitz, Yves"]
[Result "1/2-1/2"]
[TimeControl "1 h 30 min + 30 s"]
[WhiteElo "1164"]
[BlackElo "1463"]

1. d4 {[%clk 01:30:56]} {[%emt 00:00:03]} Nf6 {[%clk 01:30:44]} {[%emt
00:00:17]} 2. c4 {[%clk 01:31:00]} {[%emt 00:00:25]} e6 {[%clk 01:31:01]}
{[%emt 00:00:13]} 3. Nc3 {[%clk 01:31:07]} {[%emt 00:00:23]} Bb4 {[%clk
01:30:44]} {[%emt 00:00:47]} 4. Nf3 {[%clk 01:30:53]} {[%emt 00:00:45]} b6
{[%clk 01:27:17]} {[%emt 00:03:56]} 5. Bg5 {[%clk 01:30:13]} {[%emt 00:01:10]}
h6 {[%clk 01:24:50]} {[%emt 00:02:56]} 6. Bh4 {[%clk 01:30:34]} {[%emt
00:00:10]} O-O {[%clk 01:23:03]} {[%emt 00:02:17]} 7. e3 {[%clk 01:29:50]}
{[%emt 00:01:14]} d5 {[%clk 01:21:07]} {[%emt 00:02:26]} 8. Rc1 {[%clk
01:28:09]} {[%emt 00:02:11]} Nbd7 {[%clk 01:19:29]} {[%emt 00:02:08]} 9. cxd5
{[%clk 01:26:29]} {[%emt 00:02:09]} exd5 {[%clk 01:19:29]} {[%emt 00:00:29]} 10.
Bb5 {[%clk 01:25:34]} {[%emt 00:01:25]} Be7 {[%clk 01:17:39]} {[%emt 00:02:21]}
11. O-O {[%clk 01:24:54]} {[%emt 00:01:10]} Bb7 {[%clk 01:17:07]} {[%emt
00:01:02]} 12. a3 {[%clk 01:21:39]} {[%emt 00:03:45]} c6 {[%clk 01:15:47]}
{[%emt 00:01:50]} 13. Ba4 {[%clk 01:21:40]} {[%emt 00:00:30]} Ne8 {[%clk
01:11:58]} {[%emt 00:04:19]} 14. Bg3 {[%clk 01:20:27]} {[%emt 00:01:42]} b5
{[%clk 01:11:07]} {[%emt 00:01:21]} 15. Bc2 {[%clk 01:20:05]} {[%emt 00:00:51]}
a5 {[%clk 01:09:47]} {[%emt 00:01:51]} 16. e4 {[%clk 01:19:45]} {[%emt
00:00:50]} b4 {[%clk 01:08:36]} {[%emt 00:01:41]} 17. axb4 {[%clk 01:16:26]}
{[%emt 00:03:49]} axb4 {[%clk 01:07:18]} {[%emt 00:01:48]} 18. Ne2 {[%clk
01:13:09]} {[%emt 00:03:46]} Nb6 {[%clk 01:01:59]} {[%emt 00:05:49]} 19. b3
{[%clk 01:11:07]} {[%emt 00:02:33]} Nc7 {[%clk 00:59:38]} {[%emt 00:02:51]} 20.
e5 {[%clk 01:10:00]} {[%emt 00:01:37]} Nb5 {[%clk 00:59:14]} {[%emt 00:00:54]}
21. Qd3 {[%clk 01:07:36]} {[%emt 00:02:54]} g6 {[%clk 00:58:54]} {[%emt
00:00:51]} 22. Nf4 {[%clk 01:03:23]} {[%emt 00:04:42]} Na3 {[%clk 00:56:09]}
{[%emt 00:03:15]} 23. e6 {[%clk 01:02:16]} {[%emt 00:01:38]} f5 {[%clk
00:55:28]} {[%emt 00:01:11]} 24. Nxg6 {[%clk 01:01:12]} {[%emt 00:01:34]} Nxc2
{[%clk 00:55:46]} {[%emt 00:00:12]} 25. Qxc2 {[%clk 00:59:18]} {[%emt
00:02:23]} Rf6 {[%clk 00:55:14]} {[%emt 00:01:03]} 26. Nxe7+ {[%clk 00:58:29]}
{[%emt 00:01:19]} Qxe7 {[%clk 00:55:33]} {[%emt 00:00:11]} 27. Bh4 {[%clk
00:57:56]} {[%emt 00:01:04]} Qxe6 {[%clk 00:55:56]} {[%emt 00:00:07]} 28. Bxf6
{[%clk 00:58:02]} {[%emt 00:00:24]} Qxf6 {[%clk 00:56:24]} {[%emt 00:00:02]} 29.
Rfe1 {[%clk 00:53:08]} {[%emt 00:05:23]} Nd7 {[%clk 00:55:44]} {[%emt
00:01:10]} 30. Qd2 {[%clk 00:48:36]} {[%emt 00:05:02]} Qf8 {[%clk 00:49:54]}
{[%emt 00:06:20]} 31. Ra1 {[%clk 00:48:07]} {[%emt 00:00:57]} Nf6 {[%clk
00:49:44]} {[%emt 00:00:41]} 32. Rxa8 {[%clk 00:36:00]} {[%emt 00:12:38]} Bxa8
{[%clk 00:50:00]} {[%emt 00:00:14]} 33. h3 {[%clk 00:33:03]} {[%emt 00:03:28]}
Ne4 {[%clk 00:48:48]} {[%emt 00:01:41]} 34. Qf4 {[%clk 00:30:45]} {[%emt
00:02:47]} c5 {[%clk 00:47:39]} {[%emt 00:01:41]} 35. dxc5 {[%clk 00:29:16]}
{[%emt 00:01:59]} Qxc5 {[%clk 00:47:49]} {[%emt 00:00:20]} 36. Qe3 {[%clk
00:27:36]} {[%emt 00:02:09]} Qd6 {[%clk 00:45:32]} {[%emt 00:02:49]} 37. Qa7
{[%clk 00:26:23]} {[%emt 00:01:42]} Bc6 {[%clk 00:44:18]} {[%emt 00:01:44]} 38.
Nd4 {[%clk 00:25:07]} {[%emt 00:01:46]} Bd7 {[%clk 00:44:14]} {[%emt 00:00:34]}
39. Qa8+ {[%clk 00:24:07]} {[%emt 00:01:29]} Kg7 {[%clk 00:44:06]} {[%emt
00:00:39]} 40. Qb7 {[%clk 00:23:43]} {[%emt 00:00:54]} Kg6 {[%clk 00:43:19]}
{[%emt 00:01:16]} 41. Nf3 {[%clk 00:20:46]} {[%emt 00:03:27]} Kg7 {[%clk
00:41:27]} {[%emt 00:02:21]} 42. Nh4 {[%clk 00:19:42]} {[%emt 00:01:34]} Kf6
{[%clk 00:41:24]} {[%emt 00:00:33]} 43. Nf3 {[%clk 00:19:19]} {[%emt 00:00:53]}
Ke5 {[%clk 00:41:01]} {[%emt 00:00:20]} 44. Rc1+ {[%emt 00:00:40]} 1/2-1/2

[Event "12ème open de Salon"]
[Site "Salon de Provence, France"]
[Date "2022.07.10"]
[Round "3.8"]
[White "Frailinu, Jean-Bernard"]
[Black "Boudet, Nicole"]
[Result "1-0"]
[TimeControl "1 h 30 min + 30 s"]
[WhiteElo "1349"]
[BlackElo "1072"]

1. c4 {[%clk 01:30:45]} {[%emt 00:00:14]} e5 {[%clk 01:30:36]} {[%emt
00:00:25]} 2. Nf3 {[%clk 01:31:00]} {[%emt 00:00:14]} Nc6 {[%clk 01:30:29]}
{[%emt 00:00:37]} 3. Nc3 {[%clk 01:31:20]} {[%emt 00:00:10]} Nf6 {[%clk
01:30:00]} {[%emt 00:00:59]} 4. g3 {[%clk 01:31:16]} {[%emt 00:00:34]} d5
{[%clk 01:28:37]} {[%emt 00:01:53]} 5. cxd5 {[%clk 01:31:32]} {[%emt 00:00:14]}
Nxd5 {[%emt 00:00:12]} 6. Bg2 {[%emt 00:00:23]} Nb6 {[%clk 01:26:17]} {[%emt
00:02:16]} 7. O-O {[%clk 01:31:31]} {[%emt 00:00:30]} Be7 {[%clk 01:25:51]}
{[%emt 00:00:56]} 8. d3 {[%clk 01:31:11]} {[%emt 00:00:49]} O-O {[%clk
01:25:58]} {[%emt 00:00:24]} 9. a3 {[%clk 01:31:04]} {[%emt 00:00:36]} a5
{[%clk 01:25:50]} {[%emt 00:00:38]} 10. Bd2 {[%clk 01:30:22]} {[%emt 00:01:11]}
Re8 {[%clk 01:24:45]} {[%emt 00:01:36]} 11. Rc1 {[%clk 01:30:08]} {[%emt
00:00:43]} Bf8 {[%clk 01:23:36]} {[%emt 00:01:40]} 12. Ne4 {[%clk 01:29:49]}
{[%emt 00:00:49]} Nd4 {[%clk 01:21:02]} {[%emt 00:03:04]} 13. Bc3 {[%clk
01:29:00]} {[%emt 00:01:18]} c5 {[%clk 01:20:02]} {[%emt 00:01:31]} 14. e3
{[%clk 01:28:18]} {[%emt 00:01:12]} Nxf3+ {[%clk 01:19:39]} {[%emt 00:00:54]}
15. Bxf3 {[%clk 01:28:32]} {[%emt 00:00:16]} Nd5 {[%clk 01:13:43]} {[%emt
00:06:26]} 16. Bd2 {[%clk 01:25:32]} {[%emt 00:03:30]} b6 {[%clk 01:13:59]}
{[%emt 00:00:15]} 17. Nc3 {[%clk 01:25:22]} {[%emt 00:00:39]} Bb7 {[%clk
01:13:23]} {[%emt 00:01:07]} 18. Bg2 {[%clk 01:22:52]} {[%emt 00:02:58]} Nxc3
{[%clk 01:11:44]} {[%emt 00:02:10]} 19. Bxc3 {[%clk 01:23:09]} {[%emt
00:00:13]} Bxg2 {[%clk 01:12:06]} {[%emt 00:00:08]} 20. Kxg2 {[%clk 01:23:26]}
{[%emt 00:00:13]} Ra7 {[%clk 01:11:04]} {[%emt 00:01:32]} 21. d4 {[%clk
01:23:41]} {[%emt 00:00:15]} Rd7 {[%clk 01:11:19]} {[%emt 00:00:15]} 22. Qa4
{[%clk 01:23:44]} {[%emt 00:00:26]} exd4 {[%clk 01:09:48]} {[%emt 00:02:02]} 23.
exd4 {[%clk 01:23:58]} {[%emt 00:00:17]} cxd4 {[%clk 01:09:09]} {[%emt
00:01:08]} 24. Rfd1 {[%clk 01:23:04]} {[%emt 00:01:17]} Qa8+ {[%clk 01:05:11]}
{[%emt 00:04:35]} 25. Kg1 {[%clk 01:22:42]} {[%emt 00:00:51]} Red8 {[%clk
01:04:49]} {[%emt 00:00:53]} 26. Rxd4 {[%clk 01:22:26]} {[%emt 00:00:47]} Bc5
{[%clk 01:01:36]} {[%emt 00:03:42]} 27. Rg4 {[%clk 01:17:29]} {[%emt 00:05:26]}
g6 {[%clk 01:00:25]} {[%emt 00:01:43]} 28. Bf6 {[%clk 01:11:56]} {[%emt
00:06:00]} Be7 {[%clk 00:57:51]} {[%emt 00:03:03]} 29. Bd4 {[%clk 01:09:41]}
{[%emt 00:02:48]} Qa6 {[%clk 00:56:32]} {[%emt 00:01:51]} 30. Be3 {[%clk
01:04:41]} {[%emt 00:05:29]} b5 {[%clk 00:56:37]} {[%emt 00:00:25]} 31. Qc2
{[%clk 01:04:03]} {[%emt 00:01:03]} Rc8 {[%clk 00:53:01]} {[%emt 00:04:11]} 32.
Qxc8+ {[%clk 01:04:12]} {[%emt 00:00:20]} Qxc8 {[%clk 00:52:46]} {[%emt
00:00:46]} 33. Rxc8+ {[%clk 01:04:33]} {[%emt 00:00:09]} Kg7 {[%clk 00:51:24]}
{[%emt 00:01:53]} 34. Bd4+ {[%clk 01:02:40]} {[%emt 00:02:22]} f6 {[%clk
00:51:09]} {[%emt 00:00:45]} 35. Bc5 {[%clk 00:59:37]} {[%emt 00:01:26]} h5
{[%clk 00:51:38]} 36. Re4 {[%clk 00:59:32]} {[%emt 00:02:41]} Kf7 {[%clk
00:50:45]} {[%emt 00:01:25]} 37. Bxe7 {[%clk 00:59:47]} {[%emt 00:00:16]} Rxe7
{[%clk 00:50:23]} {[%emt 00:00:49]} 38. Rxe7+ {[%clk 01:00:11]} {[%emt
00:00:09]} Kxe7 {[%clk 00:50:45]} {[%emt 00:00:08]} 39. Rb8 {[%clk 01:00:23]}
{[%emt 00:00:17]} b4 {[%clk 00:49:36]} {[%emt 00:01:40]} 40. axb4 {[%clk
01:00:44]} {[%emt 00:00:09]} axb4 {[%clk 00:49:59]} {[%emt 00:00:07]} 41. Rxb4
{[%clk 01:01:03]} {[%emt 00:00:11]} Kd6 {[%emt 00:01:26]} 42. Rc4 {[%emt
00:00:10]} Kd5 {[%emt 00:00:13]} 43. Rc1 {[%emt 00:00:08]} 1-0

[Event "12ème open de Salon"]
[Site "Salon de Provence, France"]
[Date "2022.07.11"]
[Round "4.1"]
[White "Lalic, Bogdan"]
[Black "Chaumet, Etienne"]
[Result "1-0"]
[TimeControl "1 h 30 min + 30 s"]
[WhiteElo "2412"]
[BlackElo "1809"]

1. d4 {[%clk 01:30:57]} {[%emt 20:21:16]} Nf6 {[%clk 01:30:48]} {[%emt
00:00:13]} 2. Nf3 {[%clk 01:31:19]} {[%emt 00:00:07]} e6 {[%clk 01:30:52]}
{[%emt 00:00:26]} 3. g3 {[%clk 01:31:42]} {[%emt 00:00:07]} d5 {[%clk
01:30:25]} {[%emt 00:00:57]} 4. Bg2 {[%clk 01:32:03]} {[%emt 00:00:08]} Be7
{[%clk 01:29:25]} {[%emt 00:01:31]} 5. c4 {[%clk 01:32:23]} {[%emt 00:00:10]}
c6 {[%clk 01:28:24]} {[%emt 00:01:31]} 6. Nc3 {[%clk 01:31:36]} {[%emt
00:01:16]} Nbd7 {[%clk 01:27:13]} {[%emt 00:01:42]} 7. Qd3 {[%clk 01:31:08]}
{[%emt 00:00:58]} b6 {[%clk 01:25:15]} {[%emt 00:02:28]} 8. e4 {[%clk
01:28:06]} {[%emt 00:03:31]} Ba6 {[%clk 01:22:30]} {[%emt 00:03:15]} 9. b3
{[%clk 01:28:27]} {[%emt 00:00:10]} Bb4 {[%clk 01:19:20]} {[%emt 00:03:40]} 10.
exd5 {[%clk 01:26:18]} {[%emt 00:02:39]} cxd5 {[%clk 01:11:22]} {[%emt
00:08:28]} 11. O-O {[%clk 01:26:40]} {[%emt 00:00:07]} O-O {[%clk 01:08:38]}
{[%emt 00:03:15]} 12. Bb2 {[%clk 01:20:03]} {[%emt 00:07:07]} Rc8 {[%clk
01:06:10]} {[%emt 00:02:58]} 13. Nb5 {[%clk 01:19:59]} {[%emt 00:00:34]} dxc4
{[%clk 01:02:25]} {[%emt 00:04:15]} 14. bxc4 {[%clk 01:20:23]} {[%emt
00:00:07]} Nc5 {[%clk 00:57:17]} {[%emt 00:05:37]} 15. Qd1 {[%clk 01:14:38]}
{[%emt 00:06:14]} Bxb5 {[%clk 00:50:14]} {[%emt 00:07:33]} 16. cxb5 {[%clk
01:15:03]} {[%emt 00:00:05]} Ncd7 {[%clk 00:48:10]} {[%emt 00:02:35]} 17. Qb3
{[%clk 01:14:50]} {[%emt 00:00:42]} Bd6 {[%clk 00:45:05]} {[%emt 00:03:36]} 18.
Ne5 {[%clk 01:10:29]} {[%emt 00:04:52]} Bxe5 {[%clk 00:43:19]} {[%emt
00:02:17]} 19. dxe5 {[%clk 01:10:54]} {[%emt 00:00:05]} Nc5 {[%clk 00:39:44]}
{[%emt 00:04:05]} 20. Qf3 {[%clk 01:08:24]} {[%emt 00:02:59]} Nd5 {[%clk
00:38:23]} {[%emt 00:01:51]} 21. Rfd1 {[%clk 01:05:54]} {[%emt 00:03:00]} Qc7
{[%clk 00:35:45]} {[%emt 00:03:08]} 22. a4 {[%clk 01:02:58]} {[%emt 00:03:27]}
Rfd8 {[%clk 00:27:54]} {[%emt 00:08:20]} 23. Qa3 {[%clk 01:02:29]} {[%emt
00:00:59]} Qb7 {[%clk 00:27:14]} {[%emt 00:01:09]} 24. Bd4 {[%clk 00:58:17]}
{[%emt 00:04:43]} a6 {[%clk 00:25:25]} {[%emt 00:02:19]} 25. Rac1 {[%clk
00:51:52]} {[%emt 00:06:55]} axb5 {[%clk 00:23:40]} {[%emt 00:02:15]} 26. axb5
{[%clk 00:52:16]} {[%emt 00:00:06]} Ra8 {[%clk 00:22:49]} {[%emt 00:01:21]} 27.
Qb2 {[%clk 00:51:10]} {[%emt 00:01:36]} Rac8 {[%clk 00:22:20]} {[%emt
00:00:58]} 28. h4 {[%clk 00:45:38]} {[%emt 00:06:03]} Qe7 {[%clk 00:21:18]}
{[%emt 00:01:32]} 29. Qa3 {[%clk 00:44:49]} {[%emt 00:01:19]} Rd7 {[%clk
00:17:35]} {[%emt 00:04:13]} 30. Bxc5 {[%clk 00:41:05]} {[%emt 00:04:14]} Rxc5
{[%clk 00:15:51]} {[%emt 00:02:15]} 31. Rxc5 {[%clk 00:41:09]} {[%emt
00:00:27]} Qxc5 {[%clk 00:14:16]} {[%emt 00:02:04]} 32. Qxc5 {[%clk 00:39:31]}
{[%emt 00:02:08]} bxc5 {[%clk 00:14:41]} {[%emt 00:00:05]} 33. Rc1 {[%clk
00:39:29]} {[%emt 00:00:32]} Rc7 {[%clk 00:13:45]} {[%emt 00:01:26]} 34. Bxd5
{[%clk 00:39:51]} {[%emt 00:00:08]} exd5 {[%clk 00:14:09]} {[%emt 00:00:06]} 35.
b6 {[%clk 00:40:18]} {[%emt 00:00:04]} Rb7 {[%clk 00:14:05]} {[%emt 00:00:33]}
36. Rxc5 {[%clk 00:40:41]} {[%emt 00:00:07]} Kf8 {[%clk 00:14:22]} {[%emt
00:00:14]} 37. Rc6 {[%clk 00:41:04]} {[%emt 00:00:06]} Ke8 {[%clk 00:12:06]}
{[%emt 00:02:47]} 38. f4 {[%clk 00:41:25]} {[%emt 00:00:09]} Ke7 {[%clk
00:05:39]} {[%emt 00:06:58]} 39. Kf2 {[%clk 00:41:40]} {[%emt 00:00:15]} Rd7
{[%clk 00:05:59]} {[%emt 00:00:10]} 40. Ke3 {[%clk 00:41:42]} {[%emt 00:00:27]}
d4+ {[%clk 00:06:24]} {[%emt 00:00:05]} 41. Kd3 {[%clk 00:42:05]} {[%emt
00:00:07]} g6 {[%clk 00:03:25]} {[%emt 00:03:30]} 42. g4 {[%clk 00:40:13]}
{[%emt 00:02:22]} Kd8 {[%clk 00:02:23]} {[%emt 00:01:32]} 43. Rd6 {[%clk
00:40:22]} {[%emt 00:00:21]} Kc8 {[%clk 00:02:25]} {[%emt 00:00:28]} 44. Rxd7
{[%clk 00:40:23]} {[%emt 00:00:29]} Kxd7 {[%emt 00:00:17]} 45. Kxd4 {[%clk
00:40:49]} {[%emt 00:00:02]} Kc6 {[%clk 00:03:01]} {[%emt 00:00:09]} 46. e6
{[%clk 00:41:14]} {[%emt 00:00:05]} Kd5+ {[%emt 00:01:02]} 47. Ke4+ {[%emt
00:00:28]} 1-0